fUST/lending_fUST_20241225
["ID","MTS","AMOUNT","RATE_DAILY","PERIOD"]
[346585680,1735115441205,-500.0,0.00011772,2]
[346585681,1735115441215,-23261.95,0.00011772,2]
[346585682,1735115441226,-6540.47,0.00011772,2]
[346585683,1735115441236,-897.62,0.00011772,2]
[346585684,1735115441247,-1032.57,0.00011772,2]
[346585685,1735115441258,-500.0,0.00011772,2]
[346585686,1735115441270,-668.1,0.00011772,2]
[346585687,1735115441280,-500.0,0.00011772,2]
[346585688,1735115441291,-500.0,0.00011772,2]
[346585689,1735115441302,-500.0,0.00011773,2]
[346585690,1735115441312,-500.0,0.00011773,2]
[346585691,1735115441322,-500.0,0.00011773,2]
[346585692,1735115441333,-500.0,0.00011773,2]
[346585693,1735115441343,-500.0,0.00011774,2]
[346585694,1735115441354,-500.0,0.00011774,2]
[346585695,1735115441364,-500.0,0.00011774,2]
[346585696,1735115441375,-705.17,0.00011774,2]
[346585697,1735115441385,-552.7,0.00011774,2]
[346585698,1735115441395,-713.21,0.00011774,2]
[346585699,1735115441405,-523.61,0.00011774,2]
[346585700,1735115441415,-500.0,0.00011774,2]
[346585701,1735115441426,-500.0,0.00011774,2]
[346585702,1735115441438,-500.0,0.00011774,2]
[346585703,1735115441449,-500.0,0.00011774,2]
[346585704,1735115441461,-500.0,0.00011774,2]
[346585705,1735115441472,-500.0,0.00011774,2]
[346585706,1735115441482,-500.0,0.00011774,2]
[346585707,1735115441493,-5536.21,0.00011774,2]
[346585708,1735115441503,-500.0,0.00011774,2]
[346585709,1735115441513,-773.9,0.00011774,2]
[346585710,1735115441523,-500.0,0.00011774,2]
[346585711,1735115441534,-500.0,0.00011774,2]
[346585712,1735115441544,-757.92,0.00011774,2]
[346585713,1735115441555,-500.0,0.00011775,2]
[346585714,1735115441565,-500.0,0.00011775,2]
[346585715,1735115441575,-500.0,0.00011775,2]
[346585716,1735115441585,-500.0,0.00011775,2]
[346585717,1735115441595,-500.0,0.00011775,2]
[346585718,1735115441606,-500.0,0.00011775,2]
[346585719,1735115441616,-500.0,0.00011775,2]
[346585720,1735115441627,-214.96650312,0.00011775,2]
[346585721,1735115441638,-500.0,0.00011775,2]
[346585722,1735115441647,-978.35,0.00011775,2]
[346585723,1735115441657,-500.0,0.00011775,2]
[346585724,1735115441668,-500.0,0.00011775,2]
[346585725,1735115441677,-500.21006286,0.00011885,2]
[346585726,1735115441687,-500.09996171,0.00011885,2]
[346585727,1735115441698,-174.68394481,0.00011885,2]
[346585728,1735115441709,-168.58341398,0.00011948,2]
[346585729,1735115441720,-361.15650584,0.00012,2]
[346585730,1735115441730,-420.0,0.00012031,2]
[346585731,1735115441740,-420.0,0.00012043,2]
[346585732,1735115441751,-500.0,0.00012044,2]
[346585733,1735115441762,-1122.09,0.00012044,2]
[346585734,1735115441775,-585.62,0.00012044,2]
[346585735,1735115441786,-500.0,0.00012044,2]
[346585736,1735115441796,-190.6786926,0.00012045,2]
[346585737,1735115441806,-612.78,0.00012045,2]
[346585738,1735115441819,-500.0,0.00012045,2]
[346585739,1735115441829,-500.0,0.00012045,2]
[346585740,1735115441840,-500.0,0.00012045,2]
[346585741,1735115441850,-500.0,0.00012045,2]
[346585742,1735115441859,-790.17,0.00012045,2]
[346585743,1735115441869,-1579.47,0.00012045,2]
[346585744,1735115441878,-637.72,0.00012045,2]
[346585745,1735115441887,-500.0,0.00012045,2]
[346585746,1735115441896,-500.0,0.00012045,2]
[346585747,1735115441905,-500.0,0.00012045,2]
[346585748,1735115441915,-500.0,0.00012045,2]
[346585749,1735115441924,-855.76,0.00012045,2]
[346585750,1735115441934,-1175.6,0.00012045,2]
[346585751,1735115441943,-1088.76,0.00012045,2]
[346585752,1735115441954,-500.0,0.00012045,2]
[346585753,1735115441963,-890.77,0.00012045,2]
[346585754,1735115441972,-6120.45,0.00012045,2]
[346585755,1735115441981,-2357.41,0.00012045,2]
[346585756,1735115441991,-500.0,0.00012045,2]
[346585757,1735115442000,-500.0,0.00012045,2]
[346585758,1735115442009,-500.0,0.00012045,2]
[346585759,1735115442019,-500.0,0.00012045,2]
[346585760,1735115442028,-500.0,0.00012045,2]
[346585761,1735115442037,-500.0,0.00012045,2]
[346585762,1735115442047,-500.0,0.00012045,2]
[346585763,1735115442058,-570.91,0.00012045,2]
[346585764,1735115442067,-500.0,0.00012045,2]
[346585765,1735115442077,-1798.89,0.00012045,2]
[346585766,1735115442087,-1023.2,0.00012045,2]
[346585767,1735115442096,-500.0,0.00012045,2]
[346585768,1735115442297,-500.0,0.00012045,2]
[346585769,1735115442307,-592.26,0.00012045,2]
[346585770,1735115442316,-500.0,0.00012045,2]
[346585771,1735115442325,-500.0,0.00012045,2]
[346585772,1735115442334,-500.0,0.00012046,2]
[346585773,1735115442343,-500.0,0.00012046,2]
[346585774,1735115442352,-500.0,0.00012046,2]
[346585775,1735115442361,-500.0,0.00012046,2]
[346585776,1735115442371,-500.0,0.00012046,2]
[346585777,1735115442380,-500.0,0.00012046,2]
[346585778,1735115442389,-807.06,0.00012046,2]
[346585779,1735115442398,-500.0,0.00012046,2]
[346585780,1735115442407,-557.73,0.00012046,2]
[346585781,1735115442416,-500.0,0.00012046,2]
[346585782,1735115442425,-500.0,0.00012046,2]
[346585783,1735115442437,-582.35,0.00012046,2]
[346585784,1735115442446,-500.0,0.00012046,2]
[346585785,1735115442455,-500.0,0.00012046,2]
[346585786,1735115442464,-500.0,0.00012046,2]
[346585787,1735115442473,-23261.95,0.00012046,2]
[346585788,1735115442482,-2103.38626956,0.00012046,2]
[346585822,1735115443141,-1610.01152132,0.00012046,2]
[346585844,1735115446115,-500.0,0.00010949,2]
[346585845,1735115446124,-500.0,0.00011223,2]
[346585846,1735115446134,-547.25382647,0.00011223,2]
[346585847,1735115446143,-500.0,0.00011497,2]
[346585848,1735115446152,-500.0,0.00011771,2]
[346585849,1735115446162,-500.0,0.00012045,2]
[346585850,1735115446171,-2827.07220912,0.00012046,2]
[346585851,1735115446180,-897.62,0.00012046,2]
[346585852,1735115446189,-1032.57,0.00012046,2]
[346585853,1735115446198,-500.0,0.00012046,2]
[346585854,1735115446207,-668.1,0.00012046,2]
[346585855,1735115446216,-411.30396442,0.00012046,2]
[346585856,1735115446344,-29.21127597,0.00012046,2]
[346585862,1735115568205,24900.0,9.952e-05,2]
[346585911,1735116464563,19237.9818422,9.948e-05,2]
[346585915,1735116552159,-1786.91083204,0.00010313,2]
[346585916,1735116552182,-1786.91083204,0.00010417,2]
[346585963,1735116632284,-203.89209071,0.00010836,2]
[346585964,1735116632295,-300.0,0.00010945,2]
[346585965,1735116632304,-300.0,0.00010945,2]
[346585966,1735116632314,-638.16891548,0.00010946,2]
[346585967,1735116632323,-500.0,0.00010946,2]
[346585968,1735116632332,-500.0,0.00010946,2]
[346585969,1735116632341,-500.0,0.00010946,2]
[346585970,1735116632350,-500.0,0.00010946,2]
[346585971,1735116632359,-500.0,0.00010946,2]
[346585972,1735116632367,-76.93839993,0.00010946,2]
[346585973,1735116632394,-423.06160007,0.00010946,2]
[346585974,1735116632405,-500.0,0.00010946,2]
[346585975,1735116632414,-503.17145217,0.00010946,2]
[346585976,1735116632423,-500.0,0.00010946,2]
[346585977,1735116632431,-500.0,0.00010946,2]
[346585978,1735116632440,-500.0,0.00010946,2]
[346585979,1735116632450,-500.0,0.00010946,2]
[346585980,1735116632459,-5197.67,0.00010946,2]
[346585981,1735116632468,-500.0,0.00010946,2]
[346585982,1735116632477,-500.0,0.00010946,2]
[346585983,1735116632486,-176.69529548,0.00010946,2]
[346585984,1735116632495,-573.13547545,0.00010946,2]
[346585985,1735116632504,-500.0,0.00010946,2]
[346585986,1735116632513,-1957.01,0.00010946,2]
[346585987,1735116632522,-1510.09,0.00010946,2]
[346585989,1735116632531,-500.0,0.00010946,2]
[346585991,1735116632540,-500.0,0.00010946,2]
[346585993,1735116632550,-500.0,0.00010946,2]
[346585995,1735116632560,-502.16244357,0.00010946,2]
[346585998,1735116632570,-500.0,0.00010946,2]
[346586000,1735116632578,-888.33,0.00010946,2]
[346586002,1735116632588,-590.9082599,0.00010946,2]
[346586004,1735116632597,-873.82,0.00010946,2]
[346586006,1735116632607,-500.0,0.00010946,2]
[346586008,1735116632617,-500.0,0.00010946,2]
[346586010,1735116632626,-507.34481756,0.00010946,2]
[346586012,1735116632636,-500.0,0.00010946,2]
[346586014,1735116632645,-853.0,0.00010946,2]
[346586016,1735116632657,-238.0610695,0.00010946,2]
[346586018,1735116632666,-500.0,0.00010946,2]
[346586020,1735116632675,-547.01,0.00010946,2]
[346586022,1735116632684,-500.0,0.00010946,2]
[346586024,1735116632694,-527.95755996,0.00010946,2]
[346586026,1735116632703,-500.0,0.00010946,2]
[346586028,1735116632713,-500.0,0.00010946,2]
[346586030,1735116632722,-500.0,0.00010946,2]
[346586032,1735116632731,-500.0,0.00010946,2]
[346586034,1735116632740,-480.08139384,0.00010946,2]
[346586163,1735116638359,-19.91860616,0.00010946,2]
[346586165,1735116638369,-500.0,0.00010946,2]
[346586167,1735116638378,-500.0,0.00010946,2]
[346586169,1735116638387,-500.0,0.00010946,2]
[346586171,1735116638396,-500.0,0.00010946,2]
[346586173,1735116638405,-500.0,0.00010946,2]
[346586175,1735116638415,-500.0,0.00010947,2]
[346586177,1735116638424,-500.0,0.00010947,2]
[346586179,1735116638433,-500.0,0.00010947,2]
[346586181,1735116638442,-500.0,0.00010947,2]
[346586183,1735116638452,-500.0,0.00010947,2]
[346586185,1735116638461,-500.0,0.00010947,2]
[346586187,1735116638471,-500.0,0.00010947,2]
[346586189,1735116638480,-500.0,0.00010947,2]
[346586191,1735116638489,-500.0,0.00010947,2]
[346586193,1735116638499,-782.36,0.00010947,2]
[346586195,1735116638509,-500.0,0.00010947,2]
[346586197,1735116638518,-168.0,0.00010947,2]
[346586199,1735116638528,-500.0,0.00010947,2]
[346586201,1735116638537,-540.04,0.00010947,2]
[346586203,1735116638547,-500.0,0.00010947,2]
[346586205,1735116638556,-389.39318922,0.00010947,2]
[346586207,1735116638566,-500.0,0.00010947,2]
[346586209,1735116638575,-500.0,0.00010947,2]
[346586211,1735116638585,-500.0,0.00010947,2]
[346586213,1735116638595,-500.0,0.00010947,2]
[346586215,1735116638605,-500.0,0.00010947,2]
[346586217,1735116638614,-500.0,0.00010947,2]
[346586219,1735116638624,-500.0,0.00010947,2]
[346586221,1735116638633,-500.0,0.00010947,2]
[346586223,1735116638642,-500.0,0.00010947,2]
[346586225,1735116638652,-500.0,0.00010947,2]
[346586227,1735116638662,-500.0,0.00010947,2]
[346586229,1735116638671,-500.0,0.00010947,2]
[346586231,1735116638680,-3045.28820442,0.00010947,2]
[346586252,1735116640484,-500.0,0.00010946,2]
[346586254,1735116640494,-9016.33606879,0.00010947,2]
[346586266,1735116643320,-500.0,0.00010946,2]
[346586267,1735116643329,-7256.64242944,0.00010947,2]
[346586268,1735116643399,-1779.17,0.00010947,2]
[346586282,1735116646267,-500.0,0.00010946,2]
[346586285,1735116646277,-500.0,0.00010946,2]
[346586287,1735116646287,-95.90329735,0.00010947,2]
[346586289,1735116646296,-500.0,0.00010947,2]
[346586291,1735116646306,-500.0,0.00010947,2]
[346586293,1735116646315,-717.78,0.00010947,2]
[346586295,1735116646324,-578.24,0.00010947,2]
[346586297,1735116646334,-1430.17,0.00010947,2]
[346586299,1735116646343,-500.0,0.00010947,2]
[346586300,1735116646352,-750.88,0.00010947,2]
[346586301,1735116646361,-500.0,0.00010947,2]
[346586302,1735116646371,-500.0,0.00010947,2]
[346586303,1735116646380,-500.0,0.00010947,2]
[346586304,1735116646389,-556.66670265,0.00010947,2]
[346586305,1735116646401,-4950.75329735,0.00010947,2]
[346586306,1735116646410,-500.0,0.00010947,2]
[346586307,1735116646420,-500.0,0.00010947,2]
[346586308,1735116646429,-500.0,0.00010947,2]
[346586309,1735116646438,-788.65,0.00010947,2]
[346586310,1735116646447,-489.80886354,0.00010947,2]
[346586311,1735116646457,-817.46,0.00010947,2]
[346586312,1735116646466,-348.8648891,0.00010947,2]
[346586313,1735116646477,-345.5051109,0.00010947,2]
[346586314,1735116646486,-500.0,0.00010947,2]
[346586315,1735116646495,-926.54,0.00010947,2]
[346586316,1735116646505,-500.0,0.00010947,2]
[346586317,1735116646514,-500.0,0.00010947,2]
[346586318,1735116646522,-757.3,0.00010947,2]
[346586319,1735116646531,-500.0,0.00010947,2]
[346586320,1735116646540,-500.0,0.00010947,2]
[346586321,1735116646549,-500.0,0.00010947,2]
[346586322,1735116646558,-500.0,0.00010947,2]
[346586323,1735116646567,-500.0,0.00010947,2]
[346586324,1735116646576,-500.0,0.00010947,2]
[346586325,1735116646585,-500.0,0.00010947,2]
[346586326,1735116646594,-500.0,0.00010947,2]
[346586327,1735116646603,-500.0,0.00010947,2]
[346586328,1735116646612,-271.2210093,0.00010947,2]
[346586329,1735116646629,-257.6889907,0.00010947,2]
[346586330,1735116646638,-500.0,0.00010947,2]
[346586331,1735116646647,-500.0,0.00010947,2]
[346586332,1735116646656,-500.0,0.00010947,2]
[346586333,1735116646666,-500.0,0.00010947,2]
[346586334,1735116646675,-503.61327749,0.00010947,2]
[346586335,1735116646684,-500.0,0.00010947,2]
[346586336,1735116646693,-500.0,0.00010947,2]
[346586337,1735116646702,-500.0,0.00010947,2]
[346586338,1735116646711,-501.9060209,0.00010947,2]
[346586339,1735116646720,-156.3745038,0.00010948,2]
[346586340,1735116646729,-5128.54,0.00010948,2]
[346586341,1735116646738,-558.98150944,0.00010949,2]
[346586342,1735116646747,-502.99110824,0.00010949,2]
[346586343,1735116646756,-243.19393435,0.00010949,2]
[346586344,1735116646765,-502.52890815,0.00010949,2]
[346586345,1735116646775,-501.75659356,0.00010949,2]
[346586346,1735116646784,-500.0,0.00010949,2]
[346586347,1735116646793,-500.0,0.00010949,2]
[346586348,1735116646802,-500.0,0.00010949,2]
[346586349,1735116646811,-225.07813003,0.00010949,2]
[346586350,1735116647277,1191.57,0.00013,10]
[346586413,1735117437529,52334.34422029,0.00023,120]
[346586424,1735117484800,348652.34595262,0.00023,120]
[346586431,1735117634119,-600.0,0.0001062,2]
[346586432,1735117634141,-300.0,0.00010943,2]
[346586433,1735117634165,-300.0,0.00010943,2]
[346586434,1735117634193,-500.0,0.00010944,2]
[346586435,1735117634221,-851.31,0.00010944,2]
[346586436,1735117634248,-500.0,0.00010944,2]
[346586437,1735117634287,-500.0,0.00010944,2]
[346586438,1735117634319,-500.0,0.00010944,2]
[346586439,1735117634349,-500.0,0.00010944,2]
[346586440,1735117634377,-500.0,0.00010944,2]
[346586441,1735117634405,-500.0,0.00010945,2]
[346586442,1735117634435,-500.0,0.00010945,2]
[346586443,1735117634464,-260.6429809,0.00010945,2]
[346586450,1735117758132,-202.84076456,0.00010739,2]
[346586515,1735117838490,-240.59701986,0.00010847,2]
[346586516,1735117838500,-240.59701985,0.00010915,2]
[346586517,1735117838510,-300.0,0.00010943,2]
[346586518,1735117838520,-1108.91505866,0.00010944,2]
[346586521,1735117840564,-711.28081311,0.00010944,2]
[346586814,1735117843593,-3160.90412823,0.00010944,2]
[346586816,1735117843603,-1045.35911774,0.00010944,2]
[346586827,1735117843704,-830.11088226,0.00010944,2]
[346586829,1735117843713,-500.0,0.00010944,2]
[346586831,1735117843723,-1447.17,0.00010944,2]
[346586833,1735117843732,-724.95997354,0.00010944,2]
[346587120,1735117846644,-155.87684334,0.00010835,2]
[346587123,1735117846654,-92.50002646,0.00010944,2]
[346587125,1735117846664,-376.4057917,0.00010944,2]
[346588028,1735117889103,979.9521427,0.00010025,2]
[346588043,1735118332852,250.0,9.944e-05,2]
[346588051,1735118593752,1000.0,0.000207,90]
[346588065,1735118829111,-3870.68619406,0.00010305,2]
[346588066,1735118841097,-805.02604331,0.00010305,2]
[346588072,1735118966121,-115.99762544,0.00010305,2]
[346588076,1735118972114,-180.44776491,0.00010845,2]
[346588077,1735118972137,-180.44776488,0.00010936,2]
[346588078,1735118972160,-300.0,0.00010941,2]
[346588079,1735118972185,-300.0,0.00010941,2]
[346588080,1735118972211,-783.4,0.00010942,2]
[346588081,1735118972236,-500.0,0.00010942,2]
[346588082,1735118972259,-500.0,0.00010942,2]
[346588083,1735118972282,-500.0,0.00010942,2]
[346588084,1735118972307,-500.0,0.00010942,2]
[346588085,1735118972331,-500.0,0.00010942,2]
[346588086,1735118972355,-500.0,0.00010942,2]
[346588087,1735118972382,-500.0,0.00010942,2]
[346588088,1735118972407,-500.0,0.00010942,2]
[346588089,1735118972431,-720.8,0.00010942,2]
[346588090,1735118972453,-500.0,0.00010942,2]
[346588091,1735118972476,-1436.39,0.00010942,2]
[346588092,1735118972499,-500.0,0.00010942,2]
[346588093,1735118972528,-500.0,0.00010942,2]
[346588094,1735118972551,-500.0,0.00010942,2]
[346588095,1735118972573,-827.11,0.00010942,2]
[346588096,1735118972598,-500.0,0.00010942,2]
[346588097,1735118972621,-500.0,0.00010942,2]
[346588098,1735118972644,-1180.04,0.00010942,2]
[346588099,1735118972670,-5283.6,0.00010942,2]
[346588100,1735118972693,-978.67,0.00010942,2]
[346588101,1735118972716,-500.0,0.00010942,2]
[346588102,1735118972739,-1993.77,0.00010942,2]
[346588103,1735118972761,-500.0,0.00010942,2]
[346588104,1735118972783,-799.97,0.00010942,2]
[346588105,1735118972806,-500.0,0.00010942,2]
[346588106,1735118972830,-500.0,0.00010942,2]
[346588107,1735118972852,-157.85378167,0.00010942,2]
[346588108,1735118972876,-387.42801801,0.00010942,2]
[346588109,1735118972899,-500.0,0.00010942,2]
[346588110,1735118972922,-500.0,0.00010942,2]
[346588111,1735118972947,-500.0,0.00010942,2]
[346588112,1735118972971,-500.0,0.00010942,2]
[346588113,1735118972994,-301.91201768,0.00010942,2]
[346588114,1735118973019,-500.0,0.00010942,2]
[346588115,1735118973045,-500.0,0.00010942,2]
[346588116,1735118973069,-500.0,0.00010942,2]
[346588117,1735118973096,-501.66009779,0.00010942,2]
[346588118,1735118973121,-500.0,0.00010942,2]
[346588119,1735118973316,-500.0,0.00010942,2]
[346588120,1735118973343,-500.0,0.00010942,2]
[346588121,1735118973368,-235.06600799,0.00010942,2]
[346588122,1735118973392,-500.0,0.00010942,2]
[346588123,1735118973415,-360.9130691,0.00010942,2]
[346588124,1735118973438,-500.0,0.00010942,2]
[346588125,1735118973462,-500.0,0.00010942,2]
[346588126,1735118973485,-500.0,0.00010942,2]
[346588127,1735118973510,-500.0,0.00010942,2]
[346588128,1735118973534,-500.0,0.00010942,2]
[346588129,1735118973558,-911.98,0.00010942,2]
[346588130,1735118973581,-500.0,0.00010943,2]
[346588131,1735118973604,-167.62,0.00010943,2]
[346588132,1735118973628,-500.0,0.00010943,2]
[346588133,1735118973654,-359.52415553,0.00010943,2]
[346588134,1735118973679,-500.0,0.00010943,2]
[346588135,1735118973704,-500.0,0.00010943,2]
[346588136,1735118973728,-500.0,0.00010943,2]
[346588137,1735118973752,-500.0,0.00010943,2]
[346588138,1735118973776,-500.0,0.00010943,2]
[346588139,1735118973799,-500.0,0.00010943,2]
[346588140,1735118973822,-500.0,0.00010943,2]
[346588141,1735118973845,-500.0,0.00010943,2]
[346588142,1735118973869,-500.0,0.00010943,2]
[346588143,1735118973893,-500.0,0.00010943,2]
[346588144,1735118973917,-500.0,0.00010943,2]
[346588145,1735118973942,-555.27279886,0.00010943,2]
[346588146,1735118973976,-500.0,0.00010943,2]
[346588147,1735118974006,-500.0,0.00010943,2]
[346588148,1735118974031,-402.95961436,0.00010943,2]
[346588149,1735118974056,-500.0,0.00010943,2]
[346588150,1735118974080,-500.0,0.00010943,2]
[346588151,1735118974104,-502.34777199,0.00010943,2]
[346588152,1735118974131,-500.0,0.00010943,2]
[346588153,1735118974155,-500.0,0.00010943,2]
[346588154,1735118974180,-500.0,0.00010943,2]
[346588155,1735118974204,-500.0,0.00010943,4]
[346588156,1735118974228,-379.94992317,0.00010943,2]
[346588157,1735118974253,-500.0,0.00010943,2]
[346588158,1735118974278,-500.0,0.00010943,2]
[346588159,1735118974302,-500.0,0.00010943,2]
[346588160,1735118974327,-563.70545892,0.00010943,2]
[346588161,1735118974352,-500.0,0.00010943,2]
[346588162,1735118974376,-500.0,0.00010943,2]
[346588163,1735118974399,-500.0,0.00010943,2]
[346588164,1735118974423,-749.76,0.00010943,2]
[346588165,1735118974446,-500.0,0.00010943,2]
[346588166,1735118974469,-500.0,0.00010943,2]
[346588167,1735118974492,-500.0,0.00010943,2]
[346588168,1735118974516,-500.0,0.00010943,2]
[346588169,1735118974539,-500.0,0.00010943,2]
[346588170,1735118974563,-500.0,0.00010943,2]
[346588171,1735118974587,-168.0,0.00010943,2]
[346588172,1735118974611,-500.0,0.00010943,2]
[346588173,1735118974635,-517.54,0.00010943,2]
[346588174,1735118974660,-500.0,0.00010943,2]
[346588175,1735118974684,-500.0,0.00010943,2]
[346588176,1735118974707,-500.0,0.00010943,2]
[346588177,1735118974729,-500.0,0.00010943,2]
[346588178,1735118974751,-500.0,0.00010943,2]
[346588179,1735118974774,-500.0,0.00010943,2]
[346588180,1735118974797,-500.0,0.00010943,2]
[346588181,1735118974820,-500.0,0.00010943,2]
[346588182,1735118974844,-500.0,0.00010943,2]
[346588183,1735118974869,-1386.87,0.00010943,2]
[346588184,1735118974892,-500.0,0.00010943,2]
[346588185,1735118974915,-500.0,0.00010943,2]
[346588186,1735118974937,-500.0,0.00010943,2]
[346588187,1735118974961,-500.0,0.00010943,2]
[346588188,1735118974983,-500.0,0.00010943,2]
[346588189,1735118975007,-500.0,0.00010943,2]
[346588190,1735118975030,-837.41,0.00010943,2]
[346588191,1735118975052,-500.0,0.00010943,2]
[346588192,1735118975074,-500.0,0.00010943,2]
[346588193,1735118975099,-500.0,0.00010943,2]
[346588194,1735118975123,-500.0,0.00010943,2]
[346588195,1735118975144,-502.57760747,0.00010943,2]
[346588196,1735118975167,-500.0,0.00010943,2]
[346588197,1735118975190,-500.0,0.00010943,2]
[346588198,1735118975213,-524.21,0.00010943,2]
[346588199,1735118975237,-500.0,0.00010943,2]
[346588200,1735118975258,-500.0,0.00010943,2]
[346588201,1735118975281,-500.0,0.00010943,2]
[346588202,1735118975308,-502.74753593,0.00010943,2]
[346588203,1735118975330,-500.0,0.00010943,2]
[346588204,1735118975352,-500.0,0.00010943,2]
[346588205,1735118975375,-500.0,0.00010943,2]
[346588206,1735118975399,-500.0,0.00010943,2]
[346588207,1735118975422,-500.0,0.00010943,2]
[346588208,1735118975444,-500.0,0.00010943,2]
[346588209,1735118975466,-500.0,0.00010943,2]
[346588210,1735118975488,-580.72,0.00010943,2]
[346588211,1735118975515,-500.0,0.00010943,2]
[346588212,1735118975538,-500.0,0.00010943,2]
[346588213,1735118975560,-500.0,0.00010943,2]
[346588214,1735118975582,-500.0,0.00010943,2]
[346588215,1735118975604,-500.0,0.00010943,2]
[346588216,1735118975627,-500.0,0.00010943,2]
[346588217,1735118975649,-500.0,0.00010943,2]
[346588218,1735118975675,-500.0,0.00010943,2]
[346588219,1735118975698,-500.91043585,0.00010943,2]
[346588220,1735118975722,-500.0,0.00010943,2]
[346588221,1735118975745,-501.94438172,0.00010943,2]
[346588222,1735118975767,-500.0,0.00010943,2]
[346588223,1735118975789,-504.00923443,0.00010943,2]
[346588224,1735118975811,-37.88472157,0.00010943,2]
[346588225,1735118975999,435.99310408,0.00010205,2]
[346588226,1735118980676,185.6284939,0.00010833,2]
[346588256,1735119032955,-174.51558945,0.00010859,2]
[346588259,1735119032965,-300.0,0.00010941,2]
[346588261,1735119032975,-300.0,0.00010941,2]
[346588262,1735119032984,-500.0,0.00010941,2]
[346588265,1735119032993,-608.11,0.00010941,2]
[346588267,1735119033002,-577.11322178,0.00010941,2]
[346588269,1735119033012,-500.0,0.00010942,2]
[346588271,1735119033022,-500.0,0.00010942,2]
[346588273,1735119033031,-500.0,0.00010942,2]
[346588274,1735119033041,-500.0,0.00010942,2]
[346588276,1735119033050,-315.27876988,0.00010942,2]
[346588277,1735119033181,-184.72123012,0.00010942,2]
[346588278,1735119033191,-500.0,0.00010942,2]
[346588279,1735119033200,-32.75693772,0.00010942,2]
[346588333,1735119038733,-500.0,0.00010941,2]
[346588335,1735119038743,-467.24306228,0.00010942,2]
[346588337,1735119038752,-500.0,0.00010942,2]
[346588339,1735119038762,-500.0,0.00010942,2]
[346588341,1735119038771,-500.0,0.00010942,2]
[346588343,1735119038781,-500.0,0.00010942,2]
[346588345,1735119038790,-500.0,0.00010942,2]
[346588347,1735119038799,-500.0,0.00010942,2]
[346588349,1735119038809,-500.0,0.00010942,2]
[346588351,1735119038819,-1473.38,0.00010942,2]
[346588353,1735119038828,-723.69,0.00010942,2]
[346588355,1735119038838,-500.0,0.00010942,2]
[346588357,1735119038847,-500.0,0.00010942,2]
[346588359,1735119038857,-1442.35,0.00010942,2]
[346588361,1735119038866,-463.57133418,0.00010943,2]
[346588363,1735119038876,-500.0,0.00010943,2]
[346588364,1735119038885,-500.0,0.00010943,2]
[346588366,1735119038894,-14019.78325354,0.00010943,2]
[346588437,1735119039801,500.0,0.00010832,2]
[346589081,1735119046695,-500.0,0.00010941,2]
[346589083,1735119046705,-500.0,0.00010942,2]
[346589085,1735119046714,-4130.39672047,0.00010943,2]
[346590499,1735119259623,500.0,0.00018288,120]
[346590505,1735119558637,185.6284939,9.434e-05,2]